bitfinex/quotes_ETHUSD_20240928
["timestamp","ask_amount","ask_price","bid_price","bid_amount"]
[1727514800968,0.1301005,2667.3,2667.0,4.63928459]
[1727514801285,0.1301005,2667.3,2667.2,3.74925]
[1727514801704,0.1301005,2667.3,2667.2,3.82422082]
[1727514802916,0.1301005,2667.3,2667.2,6.82422082]
[1727514803117,0.1301005,2667.3,2667.2,8.30670054]
[1727514803274,0.1301005,2667.3,2667.2,1.48247972]
[1727514803476,0.1301005,2667.3,2667.1,3.7493]
[1727514803817,0.1301005,2667.3,2667.2,3.74925]
[1727514804026,0.1301005,2667.3,2667.0,0.8149]
[1727514804027,0.9099005,2667.3,2667.0,3.0]
[1727514804172,0.9099005,2667.3,2667.1,0.72511964]
[1727514804513,0.1301005,2667.3,2667.1,0.72511964]
[1727514804877,0.1301005,2667.3,2667.1,4.47445964]
[1727514805080,0.1301005,2667.3,2667.2,0.74744596]
[1727514805877,0.1301005,2667.3,2667.1,4.47441964]
[1727514806690,0.1301005,2667.3,2667.1,0.72511964]
[1727514807282,0.1301005,2667.3,2667.1,4.47449964]
[1727514808036,0.1301005,2667.3,2667.2,3.74925]
[1727514808174,0.1301005,2667.3,2667.2,4.64660162]
[1727514808373,0.1301005,2667.3,2667.2,4.57162496]
[1727514809017,0.1301005,2667.3,2667.2,0.82237496]
[1727514810003,0.1301005,2667.3,2667.1,3.74936]
[1727514810211,0.1301005,2667.3,2666.9,3.74958]
[1727514810378,0.1301005,2667.3,2666.9,7.49917]
[1727514810579,0.1301005,2667.3,2667.0,3.74951]
[1727514810879,0.9099005,2667.3,2666.9,3.74958]
[1727514811074,0.1301005,2667.3,2667.1,3.74936]
[1727514811705,0.1301005,2667.3,2667.2,3.74925]
[1727514813002,0.1301005,2667.3,2667.1,0.07497662]
[1727514813321,0.1301005,2667.3,2667.1,3.74927]
[1727514813614,0.1301005,2667.3,2667.2,4.20664816]
[1727514813817,0.1301005,2667.3,2667.2,0.38242436]
[1727514814115,0.1301005,2667.3,2666.9,4.206038]
[1727514814116,0.1301005,2667.3,2667.0,3.74953]
[1727514814850,3.74939,2667.1,2666.5,7.50395]
[1727514815070,3.74939,2667.1,2666.3,3.75042]
[1727514815071,3.74968,2666.9,2666.3,3.75042]
[1727514815350,3.43629641,2666.8,2666.0,3.75092]
[1727514815561,0.772,2666.7,2666.0,0.34362964]
[1727514815757,3.75046,2666.4,2665.8,3.75108]
[1727514815960,3.75046,2666.4,2665.9,3.75098]
[1727514816457,4.52269,2666.2,2665.9,0.750206]
[1727514816630,0.772,2666.2,2665.8,3.75109]
[1727514816952,0.772,2666.5,2666.1,3.75074]
[1727514817253,0.772,2666.5,2665.9,0.375109]
[1727514817254,0.772,2666.5,2666.0,3.75081]
[1727514817409,0.772,2666.5,2666.0,4.54602259]
[1727514817752,0.772,2666.5,2666.1,3.75078]
[1727514818081,0.772,2666.5,2666.0,4.54602259]
[1727514818226,0.772,2666.5,2666.0,8.29688259]
[1727514818424,0.772,2666.5,2666.0,4.54602259]
[1727514818612,0.772,2666.5,2666.1,0.49961385]
[1727514819037,4.52225,2666.5,2665.9,0.45011586]
[1727514819236,0.772,2666.5,2666.0,3.75083]
[1727514819445,0.772,2666.5,2666.1,0.42009459]
[1727514820411,3.75053,2666.3,2665.9,0.375109]
[1727514820956,3.75079,2666.2,2665.6,6.75142]
[1727514821141,3.75053,2666.3,2665.6,6.82643526]
[1727514821449,3.75053,2666.3,2665.7,3.75135]
[1727514821624,3.75053,2666.3,2665.8,4.80898853]
[1727514822564,3.75053,2666.3,2665.8,1.05777853]
[1727514822774,3.75075,2666.2,2665.8,1.05777853]
[1727514822926,7.50113,2666.3,2665.8,1.05777853]
[1727514823127,3.75075,2666.2,2665.8,1.05777853]
[1727514823861,3.75053,2666.3,2665.8,1.05777853]
[1727514824100,3.75053,2666.3,2665.9,0.48090485]
[1727514824360,4.5223,2666.5,2665.9,0.48090485]
[1727514824583,4.5223,2666.5,2666.0,3.75089]
[1727514826263,4.5223,2666.5,2666.0,7.50174]
[1727514826464,0.772,2666.5,2666.1,4.55649601]
[1727514826629,0.772,2666.5,2666.1,4.63150345]
[1727514827034,0.772,2666.8,2666.2,0.07500744]
[1727514827273,0.772,2666.8,2666.2,3.82554744]
[1727514827573,0.772,2666.8,2665.9,3.0]
[1727514827574,3.75032,2666.5,2665.9,3.75103]
[1727514827735,0.772,2666.4,2665.8,3.75119]
[1727514827936,1.55135585,2666.4,2665.8,1.123119]
[1727514828270,3.75067,2666.2,2665.8,1.123119]
[1727514828477,3.75082,2666.1,2665.8,1.123119]
[1727514828774,3.75062,2666.3,2665.8,1.123119]
[1727514829093,4.52997585,2666.3,2665.8,1.123119]
[1727514829446,3.75065,2666.2,2665.8,1.123119]
[1727514829870,4.52997585,2666.3,2665.8,4.874319]
[1727514830181,3.75062,2666.3,2665.8,4.874319]
[1727514831570,0.77935585,2666.4,2665.9,4.2384919]
[1727514831877,0.77935585,2666.7,2666.4,3.75035]
[1727514832077,2.0,2666.8,2666.4,3.75035]
[1727514832655,0.77935585,2667.0,2666.6,3.75]
[1727514832855,8.12935585,2667.1,2666.6,3.75]
[1727514833386,0.772,2667.2,2666.9,3.74963]
[1727514833598,0.772,2667.2,2666.7,4.13234018]
[1727514833599,0.772,2667.2,2666.8,3.74977]
[1727514833780,1.55135585,2667.2,2666.7,4.91564018]
[1727514834081,1.55135585,2667.2,2666.7,3.74984]
[1727514834082,5.30070585,2667.2,2666.7,3.74984]
[1727514834687,3.74941,2667.1,2666.5,3.75015]
[1727514834844,3.74964,2667.0,2666.4,7.53362]
[1727514835187,3.74964,2667.0,2666.4,8.02525262]
[1727514835768,3.7497,2666.9,2666.4,3.0]
[1727514835971,0.7918,2666.8,2666.4,3.75037]
[1727514836151,0.7918,2666.8,2666.5,3.75022]
[1727514836676,1.57115585,2666.8,2666.2,4.53386]
[1727514836987,1.57115585,2666.8,2666.3,4.12883]
[1727514837280,5.32099585,2666.8,2666.2,3.75056]
[1727514837452,3.74996,2666.7,2666.1,3.0]
[1727514837641,3.75031,2666.5,2666.1,3.0]
[1727514837847,0.7918,2666.4,2666.1,3.0]
[1727514838060,0.7918,2666.4,2666.1,3.64093814]
[1727514838800,0.7918,2666.4,2666.0,3.53616109]
[1727514838945,0.7918,2666.4,2666.0,0.53616109]
[1727514839287,0.7918,2666.4,2666.1,3.75077]
[1727514839443,0.7918,2666.4,2666.0,3.75081]
[1727514839955,4.54217,2666.4,2665.9,6.75105]
[1727514840161,0.7918,2666.4,2666.0,1.050222]
[1727514840359,0.7918,2666.4,2666.0,8.552062]
[1727514840555,0.7918,2666.4,2666.0,7.50177]
[1727514841191,0.7918,2666.4,2666.1,3.75077]
[1727514842242,0.7918,2666.4,2665.8,3.0]
[1727514842550,1.57115585,2666.7,2665.9,4.84815064]
[1727514842884,0.7918,2666.3,2665.9,4.84815064]
[1727514843051,0.7918,2666.3,2665.9,3.75106]
[1727514843251,0.7918,2666.3,2665.9,7.50205]
[1727514843666,0.7918,2666.3,2665.9,3.75099]
[1727514843997,0.7918,2666.3,2665.4,11.23173]
[1727514843998,0.7918,2665.9,2665.4,3.75177]
[1727514844286,4.54296,2665.9,2665.3,3.75182]
[1727514844599,5.32231585,2665.9,2665.3,3.75182]
[1727514844961,4.53060585,2665.8,2665.2,3.75205]
[1727514845168,0.77935585,2665.8,2665.1,3.75219]
[1727514845350,0.77935585,2665.7,2665.2,3.75195]
[1727514845546,4.53057585,2665.8,2665.1,3.75219]
[1727514845762,0.77935585,2665.8,2665.4,3.7517]
[1727514846958,1.57115585,2665.9,2665.4,3.7517]
[1727514847294,1.57115585,2665.9,2665.4,3.75169]
[1727514847496,3.75129,2665.8,2665.1,3.0]
[1727514847668,3.7515,2665.6,2665.1,3.76446183]
[1727514848114,0.7918,2665.5,2665.1,3.76446183]
[1727514848393,0.7918,2665.5,2665.2,3.75204]
[1727514848563,0.7918,2665.5,2665.2,4.54154118]
[1727514849170,0.7918,2665.5,2665.3,3.75184]
[1727514849350,0.7918,2665.7,2665.3,3.75184]
[1727514850165,0.77935585,2665.9,2665.6,3.75148]
[1727514850366,0.77935585,2666.0,2665.6,3.75148]
[1727514850575,0.77935585,2666.0,2665.6,4.50930771]
[1727514850763,0.77935585,2666.0,2665.7,0.07502364]
[1727514850966,0.77935585,2666.2,2665.8,3.7512]
[1727514851268,0.77935585,2666.2,2665.9,0.37512]
[1727514851878,0.77935585,2666.2,2665.9,4.12619]
[1727514852086,1.57115585,2666.3,2665.9,4.12619]
[1727514852286,0.77935585,2666.2,2665.9,4.12619]
[1727514852609,0.77935585,2666.2,2665.9,0.37512]
[1727514852906,0.77935585,2666.1,2665.6,3.75142]
[1727514853093,4.53017585,2666.1,2665.6,3.75142]
[1727514853410,4.53035585,2666.0,2665.4,3.75174]
[1727514853571,4.53035585,2666.0,2665.5,0.56643681]
[1727514853773,3.75082,2666.1,2665.5,0.56643681]
[1727514853774,4.53017585,2666.1,2665.5,0.56643681]
[1727514854108,4.53032585,2666.0,2665.5,0.56643681]
[1727514854270,0.77935585,2665.9,2665.5,0.56643681]
[1727514854609,0.03541397,2665.8,2665.5,4.31806681]
[1727514854910,0.03541397,2665.8,2665.5,0.56643681]
[1727514855096,0.81476982,2665.8,2665.5,0.56643681]
[1727514855645,0.03541397,2665.8,2665.7,3.75135]
[1727514855967,0.77935585,2666.0,2665.7,3.75135]
[1727514856291,0.03536507,2665.8,2665.7,3.75135]
[1727514856470,0.77935585,2666.0,2665.6,3.75148]
[1727514856670,0.03536507,2665.8,2665.7,0.375148]
[1727514856912,0.77935585,2665.9,2665.7,0.375148]
[1727514857205,4.92160192,2666.1,2665.7,4.126458]
[1727514857206,0.03536507,2665.8,2665.7,4.126458]
[1727514857367,0.77935585,2665.9,2665.7,3.75131]
[1727514857571,0.03536507,2665.8,2665.7,4.13394318]
[1727514857908,0.77935585,2666.0,2665.7,7.88520318]
[1727514858141,0.03536507,2665.8,2665.7,3.75126]
[1727514858412,0.78974675,2666.0,2665.7,3.75126]
[1727514858704,0.03536507,2665.8,2665.7,4.501534]
[1727514859310,0.04575597,2665.8,2665.7,4.501534]
[1727514859876,0.04575597,2665.8,2665.7,0.750274]
[1727514859877,1.21654789,2665.8,2665.7,0.750274]
[1727514860187,1.58434153,2665.8,2665.3,3.7833]
[1727514860395,0.77974135,2665.6,2665.5,3.75164]
[1727514860798,0.8144948,2665.6,2665.5,3.75164]
[1727514861008,0.03475345,2665.6,2665.5,3.75164]
[1727514861312,0.04514435,2665.6,2665.5,3.75164]
[1727514861524,0.04514435,2665.6,2665.5,0.87438701]
[1727514861809,0.8248857,2665.6,2665.5,0.87438701]
[1727514862173,0.8248857,2665.6,2665.5,4.62602701]
[1727514862574,0.04514435,2665.6,2665.5,4.62602701]
[1727514862869,0.8248857,2665.6,2665.5,4.62602701]
[1727514863294,0.8248857,2665.6,2665.5,0.87438701]
[1727514863511,1.21475638,2665.6,2665.5,0.87438701]
[1727514864075,0.82471508,2665.6,2665.5,0.87438701]
[1727514864526,1.21475638,2665.6,2665.5,0.87438701]
[1727514865210,0.04514435,2665.6,2665.5,0.87438701]
[1727514865413,0.04514435,2665.6,2665.4,3.75165]
[1727514865414,1.21475638,2665.6,2665.4,3.75165]
[1727514865611,1.21475638,2665.6,2665.3,3.0]
[1727514865778,1.21475638,2665.6,2665.2,0.78950118]
[1727514865779,0.77948814,2665.4,2665.2,0.78950118]
[1727514865976,0.77948814,2665.4,2665.2,3.0]
[1727514866215,0.81286221,2665.3,2665.2,3.0]
[1727514866399,0.03337407,2665.3,2665.2,3.0]
[1727514866589,0.03337407,2665.3,2665.2,4.050442]
[1727514867203,0.03337407,2665.3,2664.4,0.7911]
[1727514867204,0.84087407,2665.3,2664.4,0.7911]
[1727514867404,0.84087407,2665.3,2663.7,1.56802319]
[1727514867405,0.77948814,2664.6,2664.2,0.7911]
[1727514867630,0.77948814,2664.6,2664.0,4.54476]
[1727514867631,0.77948814,2664.4,2664.0,4.54476]
[1727514867836,0.77948814,2664.3,2664.0,0.829871]
[1727514868042,0.77948814,2664.2,2663.8,4.54505]
[1727514868221,0.77948814,2664.1,2663.8,4.54505]
[1727514868435,0.77948814,2664.0,2663.6,7.50841]
[1727514868600,0.77948814,2664.0,2663.7,0.375424]
[1727514868800,0.77948814,2663.9,2663.7,0.375424]
[1727514869218,0.77948814,2663.9,2663.2,3.7548]
[1727514869553,9.09492814,2663.9,2663.2,4.54588]
[1727514869740,9.09492814,2663.9,2662.0,3.75652]
[1727514869741,0.77948814,2663.7,2662.9,0.7911]
[1727514869905,3.75454,2663.5,2662.9,0.7911]
[1727514870099,4.53402814,2663.5,2662.9,4.54636]
[1727514870299,4.53388814,2663.6,2662.9,5.44845246]
[1727514870533,3.7545,2663.5,2662.9,5.44845246]
[1727514870840,3.7544,2663.6,2662.9,5.44845246]
[1727514871047,7.50884,2663.6,2663.0,0.92038025]
[1727514871246,4.53388814,2663.6,2662.9,4.54636]
[1727514871408,3.7544,2663.6,2662.9,4.54636]
[1727514871607,3.7544,2663.6,2663.0,3.75514]
[1727514872138,0.77948814,2663.7,2663.0,3.75511]
[1727514872339,5.75409,2663.8,2663.2,3.75477]
[1727514873098,5.75409,2663.8,2663.3,3.75473]
[1727514873299,0.8075,2663.9,2663.3,3.75473]
[1727514873517,0.8075,2663.9,2663.2,3.75477]
[1727514874197,3.75414,2663.8,2663.2,3.75477]
[1727514874398,4.56148,2663.9,2663.2,3.75477]
[1727514874997,4.56148,2663.9,2663.2,7.50955]
[1727514875221,3.75412,2663.8,2663.2,3.75477]
[1727514875939,3.75406,2663.8,2663.2,4.50576]
[1727514876836,0.8075,2663.9,2663.4,3.75456]
[1727514877036,0.8075,2663.9,2663.4,3.75447]
[1727514878411,0.8075,2663.9,2663.4,4.205016]
[1727514878603,0.8075,2663.9,2663.5,3.75445]
[1727514878807,0.8075,2663.9,2663.4,4.205106]
[1727514879436,4.56148,2663.9,2663.4,0.450546]
[1727514880300,4.56148,2663.9,2663.2,4.50577]
[1727514880497,4.56148,2663.9,2663.2,3.75478]
[1727514880945,3.75418,2663.7,2663.0,3.75516]
[1727514881114,3.75418,2663.7,2663.1,3.75501]
[1727514881441,7.50849,2663.7,2663.0,3.75507]
[1727514881600,7.50849,2663.7,2663.0,8.0477841]
[1727514882620,7.50849,2663.7,2663.0,4.2927041]
[1727514882811,7.50849,2663.7,2663.0,8.0477641]
[1727514883016,3.75431,2663.6,2663.0,4.2926941]
[1727514883216,3.75431,2663.6,2663.0,8.0477541]
[1727514883416,3.75418,2663.7,2663.1,4.63888541]
[1727514883417,7.50846,2663.7,2663.1,4.63888541]
[1727514884313,2.0,2663.8,2662.8,3.75536]
[1727514884314,8.26462,2663.6,2662.8,3.75536]
[1727514884515,4.51018,2663.6,2663.0,3.75515]
[1727514884718,4.51018,2663.6,2663.0,3.75508]
[1727514885105,8.26462,2663.6,2663.0,3.75508]
[1727514885739,3.75449,2663.5,2663.0,3.75508]
[1727514887122,4.51018,2663.6,2663.0,3.75508]
[1727514887448,8.26461,2663.6,2663.0,3.75508]
[1727514887608,8.26459,2663.6,2663.0,4.506115]
[1727514887811,4.51018,2663.6,2663.0,4.506115]
[1727514888113,8.1058,2663.9,2663.4,3.75449]
[1727514888331,0.7558,2663.9,2663.4,3.75449]
[1727514888943,0.7558,2663.9,2663.4,7.50899]
[1727514889156,0.7558,2663.9,2663.4,8.714719]
[1727514889507,0.7558,2663.9,2663.4,4.960219]
[1727514889908,4.50976,2663.9,2663.4,4.960219]
[1727514890139,0.7558,2663.9,2663.4,8.714729]
[1727514890349,0.7558,2663.9,2663.4,4.960219]
[1727514890350,4.50972,2663.9,2663.4,4.960219]
[1727514890508,4.50972,2663.9,2663.4,3.75449]
[1727514891449,2.0,2664.1,2663.5,3.75434]
[1727514891755,3.75375,2664.0,2663.4,7.50901]
[1727514891915,3.75375,2664.0,2663.5,0.750901]
[1727514892112,3.75375,2664.0,2663.5,4.505351]
[1727514892957,3.75375,2664.0,2663.5,0.750901]
[1727514893113,2.39272366,2664.4,2663.7,0.7791]
[1727514893455,0.39272366,2664.4,2664.0,3.75373]
[1727514893614,3.75305,2664.5,2664.0,3.75373]
[1727514894256,3.75328,2664.4,2663.8,7.92938964]
[1727514894414,3.75328,2664.4,2663.8,4.17543964]
[1727514894612,3.75313,2664.5,2663.9,0.49545396]
[1727514894841,3.75297,2664.6,2663.9,0.49545396]
[1727514895158,7.50648,2664.4,2663.9,0.49545396]
[1727514895354,3.7532,2664.4,2663.9,0.49545396]
[1727514895558,3.75299,2664.6,2663.9,0.49545396]
[1727514895743,3.75326,2664.4,2663.9,0.49545396]
[1727514896265,3.75371,2664.1,2663.5,3.0]
[1727514896413,3.75371,2664.1,2663.5,6.75437]
[1727514896615,3.75367,2664.1,2663.3,3.75471]
[1727514896852,3.75407,2663.8,2663.3,3.75471]
[1727514897059,3.75407,2663.8,2663.1,4.53399]
[1727514897264,3.75397,2663.9,2663.2,0.79703464]
[1727514897466,7.50798,2663.9,2663.3,3.75469]
[1727514897631,3.75397,2663.9,2663.3,3.75469]
[1727514897838,5.75367,2664.1,2663.3,4.28777246]
[1727514898037,3.75391,2663.9,2663.3,4.28777246]
[1727514898259,9.5074,2664.1,2663.4,3.75456]
[1727514898525,5.75367,2664.1,2663.5,3.75445]
[1727514899041,5.75367,2664.1,2663.5,7.5089]
[1727514899042,3.75367,2664.1,2663.5,7.5089]
[1727514899368,3.75367,2664.1,2663.6,0.7791]
[1727514899726,3.75367,2664.1,2663.6,4.53335]
[1727514900279,3.75367,2664.1,2663.6,0.7791]
[1727514900574,3.75439,2663.6,2663.1,3.0]
[1727514900739,3.75439,2663.6,2663.1,3.755]
[1727514900940,7.50879,2663.6,2663.1,0.75341]
[1727514901172,7.50879,2663.6,2663.1,3.75341]
[1727514901468,3.75439,2663.6,2663.1,3.75341]
[1727514901685,3.75409,2663.8,2663.2,3.7548]
[1727514901844,4.50449,2663.9,2663.3,4.505441]
[1727514902182,4.50456,2663.9,2663.4,3.75455]
[1727514902470,4.50456,2663.9,2663.4,4.5805671]
[1727514902627,4.50456,2663.9,2663.4,8.3351171]
[1727514902828,2.0,2664.0,2663.5,0.7518]
[1727514903072,2.0,2664.0,2663.4,0.8260171]
[1727514903073,3.75391,2663.9,2663.4,0.8260171]
[1727514903252,3.7542,2663.7,2663.3,0.7518]
[1727514903438,6.5511,2663.7,2663.1,3.7518]
[1727514903648,0.7969,2664.0,2663.3,3.75472]
[1727514903859,3.75412,2663.8,2663.3,3.75472]
[1727514904062,0.7969,2664.0,2663.4,3.51138187]
[1727514904298,7.35,2664.1,2663.9,3.75384]
[1727514904583,0.7969,2664.6,2664.1,3.75347]
[1727514904790,3.75291,2664.6,2664.1,3.75347]
[1727514904948,3.75301,2664.6,2664.0,0.7518]
[1727514905148,3.75301,2664.6,2664.0,4.50547]
[1727514905149,7.50601,2664.6,2664.0,4.50547]
[1727514905359,3.753,2664.6,2664.0,4.50547]
[1727514905573,3.75314,2664.5,2664.0,4.50547]
[1727514906029,7.506,2664.6,2664.0,4.50547]
[1727514906230,3.753,2664.6,2664.0,4.50547]
[1727514906480,3.75315,2664.5,2664.0,0.7518]
[1727514906988,3.7532,2664.4,2663.9,3.75384]
[1727514907187,3.75342,2664.3,2663.7,4.50589]
[1727514907336,3.75413,2663.8,2663.2,0.7518]
[1727514907536,0.77948814,2664.2,2663.7,4.50596]
[1727514907848,12.67977814,2664.3,2663.8,3.75401]
[1727514908202,4.55002,2664.5,2663.8,4.580013]
[1727514908362,3.75328,2664.4,2663.8,8.333963]
[1727514908575,4.55002,2664.5,2664.0,3.75374]
[1727514908865,4.55002,2664.5,2663.8,4.579953]
[1727514908866,3.75321,2664.4,2663.9,3.75389]
[1727514909078,3.75321,2664.4,2663.8,4.579943]
[1727514909243,4.53270814,2664.4,2663.9,3.75385]
[1727514909668,0.77948814,2664.3,2664.0,3.75373]
[1727514909875,5.71959203,2664.5,2664.0,3.75373]
[1727514909876,9.08259814,2664.5,2664.0,3.75373]
[1727514910030,3.75323,2664.4,2663.8,3.75394]
[1727514910230,0.77948814,2664.3,2663.7,4.956468]
[1727514910435,4.53271814,2664.4,2663.9,3.75389]
[1727514910636,0.77948814,2664.3,2663.9,3.75389]
[1727514910832,0.77948814,2664.4,2663.9,3.75389]
[1727514911070,0.77948814,2664.4,2663.9,4.25402368]
[1727514911273,0.77948814,2664.3,2663.9,4.25402368]
[1727514911447,0.77948814,2664.2,2663.9,3.75389]
[1727514912345,0.77948814,2664.1,2663.9,3.75389]
[1727514912545,0.77948814,2664.1,2664.0,3.75375]
[1727514912852,0.77948814,2664.1,2664.0,4.504527]
[1727514913050,0.77948814,2664.2,2664.0,4.504527]
[1727514913347,1.16961203,2664.1,2664.0,4.504527]
[1727514913550,0.77920105,2664.1,2664.0,7.94074341]
[1727514913770,0.77920105,2664.1,2663.7,3.0]
[1727514914086,0.77919606,2663.9,2663.8,4.39764964]
[1727514914378,0.77923495,2663.9,2663.8,4.39764964]
[1727514914567,0.77923495,2664.0,2663.8,4.39764964]
[1727514914764,0.77923495,2663.9,2663.8,4.39764964]
[1727514916039,1.16961203,2663.9,2663.3,0.8037]
[1727514916237,1.16877722,2663.8,2663.7,3.75417]
[1727514916683,1.16877722,2663.8,2663.7,5.308717]
[1727514916684,0.77926624,2663.8,2663.7,5.308717]
[1727514916871,0.77926624,2663.9,2663.8,3.75403]
[1727514917184,0.77927428,2663.9,2663.8,5.00393434]
[1727514917875,1.53858556,2664.2,2663.9,3.75389]
[1727514917876,0.77927428,2664.0,2663.9,3.75389]
[1727514918089,0.77927428,2664.0,2663.9,4.78512713]
[1727514919498,0.77927428,2664.4,2664.3,3.75333]
[1727514919799,0.77927428,2664.5,2664.4,3.75319]
[1727514920089,0.77927428,2664.5,2664.3,7.64532941]
[1727514920090,1.16877722,2664.6,2664.3,3.75332]
[1727514920386,0.77924728,2664.4,2664.3,3.75332]
[1727514920591,0.77924728,2664.4,2664.3,4.92799864]
[1727514920754,0.77924728,2664.5,2664.4,3.75319]
[1727514920951,0.77924728,2664.6,2664.5,3.75304]
[1727514921296,0.0103909,2664.7,2664.6,4.5566]
[1727514921453,0.0103909,2664.7,2664.6,4.63164373]
[1727514921791,0.0103909,2664.7,2664.6,7.63164373]
[1727514921977,0.0103909,2664.7,2664.6,9.64902036]
[1727514922174,0.0103909,2664.7,2664.6,9.57397663]
[1727514925910,0.77924728,2665.9,2665.4,4.55548]
[1727514926196,0.77924728,2665.7,2665.4,4.882529]
[1727514926407,0.77924728,2665.7,2665.4,3.75178]
[1727514926608,0.77924728,2665.8,2665.4,3.75178]
[1727514927271,0.77924728,2665.8,2665.5,3.75154]
[1727514927491,0.77924728,2665.9,2665.5,3.75154]
[1727514927696,0.77924728,2665.8,2665.6,3.75141]
[1727514927894,0.77924728,2666.0,2665.7,3.75134]
[1727514928098,0.77924728,2666.0,2665.8,3.75118]
[1727514928299,1.58034728,2666.1,2665.8,3.75118]
[1727514928889,1.58034728,2666.1,2665.6,3.75141]
[1727514929109,1.58034728,2666.1,2665.6,7.50281]
[1727514929307,1.58034728,2666.1,2665.6,3.7514]
[1727514929813,1.58034728,2666.1,2665.8,3.75121]
[1727514929978,0.8011,2666.1,2665.9,3.75107]
[1727514930372,0.8011,2666.1,2665.7,3.75134]
[1727514930576,8.93034728,2666.3,2665.7,8.78943024]
[1727514930770,8.1511,2666.3,2665.9,3.75099]
[1727514931167,8.1511,2666.3,2666.0,3.75089]
[1727514931371,8.1511,2666.3,2665.9,3.75098]
[1727514931372,0.8011,2666.3,2666.1,3.75077]
[1727514931681,0.8011,2666.3,2665.9,3.75098]
[1727514931888,0.8011,2666.3,2665.9,8.30106764]
[1727514932096,0.8011,2666.3,2665.9,4.55007764]
[1727514932297,0.8011,2666.3,2665.9,4.55003764]
[1727514932510,0.8011,2666.3,2666.0,3.75093]
[1727514933615,0.7835,2666.6,2666.1,3.75075]
[1727514933971,0.7835,2666.6,2666.2,3.75064]
[1727514934395,0.7835,2666.6,2666.3,3.75047]
[1727514934808,4.53335,2666.8,2666.3,3.75047]
[1727514935492,0.7835,2666.6,2665.9,3.75105]
[1727514935696,3.75038,2666.4,2665.9,3.75105]
[1727514936083,3.75038,2666.4,2665.8,3.75119]
[1727514936910,3.75038,2666.4,2665.7,4.51618]
[1727514937202,3.75038,2666.4,2665.5,3.75161]
[1727514937203,3.75075,2666.2,2665.5,3.75154]
[1727514937381,3.75075,2666.2,2665.7,3.75132]
[1727514937717,3.75067,2666.2,2665.7,3.75132]
[1727514938238,4.53406,2666.3,2665.7,3.75126]
[1727514938413,4.53406,2666.3,2665.7,7.50253]
[1727514938577,0.7835,2666.3,2665.9,3.75103]
[1727514938777,0.7835,2666.3,2665.7,4.5808739]
[1727514938976,0.7835,2666.3,2665.5,4.47039064]
[1727514939177,3.75076,2666.2,2665.5,8.22192064]
[1727514939410,3.75079,2666.1,2665.6,3.75149]
[1727514941381,3.75076,2666.2,2665.6,3.75149]
[1727514941723,3.75079,2666.1,2665.6,3.75149]
[1727514941909,3.75076,2666.2,2665.6,3.75149]
[1727514942115,7.50152,2666.2,2665.6,3.75149]
[1727514943405,3.75076,2666.2,2665.6,3.75149]
[1727514943734,0.7835,2666.3,2665.8,3.75121]
[1727514944093,4.53403,2666.3,2665.8,3.75121]
[1727514944299,0.7835,2666.3,2665.9,3.75106]
[1727514944496,0.7835,2666.3,2666.0,3.75093]
[1727514944740,0.7835,2666.6,2666.0,3.75093]
[1727514945200,4.53361,2666.6,2666.0,3.75093]
[1727514945402,0.7835,2666.6,2666.2,3.75064]
[1727514946304,3.75023,2666.5,2665.9,4.21017281]
[1727514946495,3.75045,2666.4,2665.8,4.51602]
[1727514946720,3.75045,2666.4,2665.8,5.01232481]
[1727514947296,4.53366,2666.6,2665.8,5.01232481]
[1727514947504,8.28388,2666.6,2666.0,3.75085]
[1727514947704,3.75031,2666.5,2666.0,3.75092]
[1727514948039,4.53366,2666.6,2666.1,3.75077]
[1727514948241,0.7835,2666.6,2666.1,3.7507]
[1727514948419,4.53367,2666.6,2666.1,3.7507]
[1727514949015,8.28389,2666.6,2666.0,0.50121648]
[1727514949216,3.75024,2666.5,2665.9,7.50195]
[1727514949413,8.28388,2666.6,2666.0,3.75086]
[1727514949854,4.53367,2666.6,2666.0,3.75086]
[1727514950441,0.55,2666.5,2665.7,6.75123]
[1727514950661,3.75042,2666.4,2665.9,3.75107]
[1727514950951,4.30036,2666.5,2665.7,7.51471945]
[1727514951124,8.05072,2666.5,2665.9,3.75107]
[1727514951331,3.75045,2666.4,2665.9,3.75107]
[1727514951545,0.7714,2666.2,2665.7,3.75123]
[1727514951917,0.7714,2666.2,2665.6,0.7649]
[1727514951918,3.75101,2666.0,2665.6,0.7649]
[1727514952117,4.52213,2666.2,2665.5,3.8265852]
[1727514952321,4.52213,2666.2,2665.7,3.75133]
[1727514952926,4.52213,2666.2,2665.6,3.75146]
[1727514953826,4.52213,2666.2,2665.7,3.75135]
[1727514954329,4.52213,2666.2,2665.7,3.75127]
[1727514955281,0.7714,2666.2,2665.7,7.50255]
[1727514955555,0.7714,2666.2,2665.8,3.75121]
[1727514955719,0.7714,2666.2,2665.6,3.75149]
[1727514955916,1.55064728,2666.2,2665.6,3.75149]
[1727514956218,4.52213,2666.2,2665.6,3.75149]
[1727514956453,3.7508,2666.1,2665.6,3.75149]
[1727514956653,4.53004728,2666.1,2665.5,3.75156]
[1727514956963,3.75095,2666.0,2665.5,3.75156]
[1727514957256,3.75108,2665.9,2665.3,4.57099]
[1727514957562,4.53019728,2666.0,2665.4,3.75176]
[1727514957746,4.53019728,2666.0,2665.3,4.57099]
[1727514958054,3.75115,2665.9,2665.3,4.57092]
[1727514958273,0.7714,2665.8,2665.4,3.75177]
[1727514958753,0.7714,2665.8,2665.3,4.57092]
[1727514958953,0.77924728,2665.9,2665.5,7.50309]
[1727514959155,0.77924728,2666.0,2665.5,3.82656457]
[1727514959340,0.77924728,2666.0,2665.6,3.75147]
[1727514959547,1.55064728,2666.1,2665.7,3.75135]
[1727514959863,5.30145728,2666.1,2665.6,0.42836566]
[1727514960154,0.77924728,2666.0,2665.5,7.50309]
[1727514960355,0.77924728,2666.0,2665.5,3.75154]
[1727514960555,0.77924728,2665.9,2665.3,4.57094]
[1727514960856,0.7714,2665.7,2665.2,3.0]